fUSD/lending_fUSD_20250820
["ID","MTS","AMOUNT","RATE_DAILY","PERIOD"]
[380362404,1755704302321,-400.0,0.00030684,120]
[380362405,1755704302381,-400.0,0.00030684,120]
[380362406,1755704302437,-995.33,0.00030684,120]
[380362407,1755704302495,-400.0,0.00030684,120]
[380362408,1755704302550,-607.8,0.00030684,120]
[380362409,1755704302605,-400.0,0.00030684,120]
[380362410,1755704302658,-550.3,0.00030684,120]
[380362411,1755704302712,-1879.06,0.00030684,120]
[380362412,1755704302766,-584.92,0.00030684,120]
[380362413,1755704302818,-1130.3,0.00030684,120]
[380362414,1755704302871,-1095.24,0.00030684,120]
[380362415,1755704302920,-1105.71,0.00030684,120]
[380362416,1755704302971,-400.0,0.00030684,120]
[380362417,1755704303021,-558.7,0.00030684,120]
[380362418,1755704303079,-2576.43,0.00030684,120]
[380362419,1755704303133,-400.0,0.00030684,120]
[380362420,1755704303188,-1221.29,0.00030684,120]
[380362421,1755704303247,-400.0,0.00030684,120]
[380362422,1755704303312,-400.0,0.00030684,120]
[380362423,1755704303378,-1290.49,0.00030684,120]
[380362424,1755704303447,-1328.46,0.00030684,120]
[380362425,1755704303517,-400.0,0.00030684,120]
[380362426,1755704303583,-400.0,0.00030684,120]
[380362427,1755704304172,-655.49,0.00030684,120]
[380362428,1755704304232,-547.67,0.00030684,120]
[380362429,1755704304295,-747.95,0.00030684,120]
[380362430,1755704304351,-400.0,0.00030684,120]
[380362431,1755704304411,-614.58,0.00030684,120]
[380362432,1755704304466,-1919.54,0.00030684,120]
[380362433,1755704304522,-1467.27,0.00030684,120]
[380362434,1755704304575,-1484.05,0.00030684,120]
[380362435,1755704304630,-1261.65,0.00030684,120]
[380362436,1755704304684,-821.76,0.00030684,120]
[380362437,1755704304738,-1102.57,0.00030684,120]
[380362438,1755704304792,-320.39656543,0.00030684,120]
[380362439,1755704304843,-407.83,0.00030684,120]
[380362440,1755704304900,-836.61,0.00030684,120]
[380362441,1755704304959,-400.0,0.00030684,120]
[380362442,1755704305020,-1136.83,0.00030684,120]
[380362443,1755704305083,-1466.82,0.00030684,120]
[380362444,1755704305146,-1677.64,0.00030684,120]
[380362445,1755704305208,-410.2,0.00030684,120]
[380362446,1755704305268,-1316.67,0.00030684,120]
[380362447,1755704305326,-400.0,0.00030684,120]
[380362448,1755704305386,-716.18,0.00030684,120]
[380362449,1755704305443,-1051.67,0.00030684,120]
[380362450,1755704305503,-1081.7,0.00030684,120]
[380362451,1755704305560,-816.21,0.00030684,120]
[380362452,1755704305616,-1388.81,0.00030684,120]
[380362453,1755704305668,-400.0,0.00030684,120]
[380362454,1755704305721,-562.4,0.00030684,120]
[380362455,1755704305769,-1723.19,0.00030684,120]
[380362456,1755704305821,-422.9,0.00030684,120]
[380362457,1755704305873,-744.58,0.00030684,120]
[380362458,1755704305936,-1178.3,0.00030684,120]
[380362459,1755704305996,-400.0,0.00030684,120]
[380362460,1755704306064,-400.0,0.00030684,120]
[380362461,1755704306127,-400.0,0.00030684,120]
[380362462,1755704306190,-400.0,0.00030684,120]
[380362463,1755704306251,-1662.53,0.00030684,120]
[380362464,1755704306311,-400.0,0.00030684,120]
[380362465,1755704306370,-1096.26,0.00030684,120]
[380362466,1755704306427,-400.0,0.00030684,120]
[380362467,1755704306483,-1171.09,0.00030684,120]
[380362468,1755704306538,-400.0,0.00030684,120]
[380362469,1755704306594,-400.0,0.00030684,120]
[380362470,1755704306647,-471.29,0.00030684,120]
[380362471,1755704306700,-400.0,0.00030684,120]
[380362472,1755704306756,-400.0,0.00030684,120]
[380362473,1755704306809,-2219.35,0.00030684,120]
[380362474,1755704306860,-400.0,0.00030684,120]
[380362475,1755704306912,-2231.4,0.00030684,120]
[380362476,1755704306968,-664.55,0.00030684,120]
[380362477,1755704307020,-1315.5,0.00030684,120]
[380362478,1755704307081,-1833.57,0.00030684,120]
[380362479,1755704307138,-400.0,0.00030684,120]
[380362480,1755704307198,-400.0,0.00030684,120]
[380362481,1755704307259,-766.99,0.00030684,120]
[380362482,1755704307320,-400.0,0.00030684,120]
[380362483,1755704307378,-400.0,0.00030684,120]
[380362484,1755704307433,-802.09,0.00030684,120]
[380362485,1755704307486,-1633.32,0.00030684,120]
[380362486,1755704307538,-400.0,0.00030684,120]
[380362487,1755704307585,-451.91,0.00030684,120]
[380362488,1755704307634,-1437.08,0.00030684,120]
[380362489,1755704307683,-400.0,0.00030684,120]
[380362490,1755704307729,-1506.2,0.00030684,120]
[380362491,1755704307782,-1314.55,0.00030684,120]
[380362492,1755704307829,-897.94,0.00030684,120]
[380362493,1755704307879,-400.0,0.00030684,120]
[380362494,1755704307927,-400.0,0.00030684,120]
[380362495,1755704307979,-400.0,0.00030684,120]
[380362496,1755704308032,-1909.63,0.00030684,120]
[380362497,1755704308090,-845.46,0.00030684,120]
[380362498,1755704308147,-400.0,0.00030684,120]
[380362499,1755704308209,-1553.12,0.00030684,120]
[380362500,1755704308267,-565.39,0.00030684,120]
[380362501,1755704308326,-400.0,0.00030684,120]
[380362502,1755704308377,-400.0,0.00030684,120]
[380362503,1755704308429,-1193.79,0.00030684,120]
[380362504,1755704308479,-1393.64,0.00030684,120]
[380362505,1755704308533,-791.35,0.00030684,120]
[380362506,1755704308586,-400.0,0.00030684,120]
[380362507,1755704308640,-400.0,0.00030684,120]
[380362508,1755704308695,-1132.22,0.00030684,120]
[380362509,1755704308751,-900.25,0.00030684,120]
[380362510,1755704308804,-1591.84,0.00030684,120]
[380362511,1755704308857,-400.0,0.00030684,120]
[380362512,1755704308913,-1706.19,0.00030684,120]
[380362513,1755704308972,-400.0,0.00030684,120]
[380362514,1755704309036,-1310.14,0.00030684,120]
[380362515,1755704309100,-400.0,0.00030684,120]
[380362516,1755704309163,-739.2,0.00030684,120]
[380362517,1755704309222,-400.0,0.00030684,120]
[380362518,1755704309280,-1264.17,0.00030684,120]
[380362519,1755704309339,-1769.16,0.00030684,120]
[380362520,1755704309394,-1593.56,0.00030684,120]
[380362521,1755704309444,-508.11,0.00030684,120]
[380362522,1755704309499,-400.0,0.00030684,120]
[380362523,1755704309553,-435.86,0.00030684,120]
[380362524,1755704309608,-427.54,0.00030684,120]
[380362525,1755704309667,-1191.55,0.00030684,120]
[380362526,1755704309721,-918.7,0.00030684,120]
[380362527,1755704309778,-1099.75,0.00030684,120]
[380362528,1755704309833,-1567.06,0.00030684,120]
[380362529,1755704309890,-814.97,0.00030684,120]
[380362530,1755704309944,-591.32,0.00030684,120]
[380362531,1755704310018,-1335.27,0.00030684,120]
[380362532,1755704310084,-1151.72,0.00030684,120]
[380362533,1755704310142,-400.0,0.00030684,120]
[380362534,1755704310200,-2443.03,0.00030684,120]
[380362535,1755704310263,-952.89,0.00030684,120]
[380362536,1755704310328,-673.34,0.00030684,120]
[380362537,1755704310388,-1458.61,0.00030684,120]
[380362538,1755704310446,-1757.28,0.00030684,120]
[380362539,1755704310505,-400.0,0.00030684,120]
[380362540,1755704310561,-400.0,0.00030684,120]
[380362541,1755704310617,-1628.91,0.00030684,120]
[380362542,1755704311096,-1052.77,0.00030684,120]
[380362543,1755704311158,-3284.42,0.00030684,120]
[380362544,1755704311216,-1302.47,0.00030684,120]
[380362545,1755704311281,-753.99,0.00030684,120]
[380362546,1755704311345,-400.0,0.00030684,120]
[380362547,1755704311406,-921.54,0.00030684,120]
[380362548,1755704311468,-1366.98,0.00030684,120]
[380362549,1755704311529,-662.23,0.00030684,120]
[380362550,1755704311588,-412.94,0.00030684,120]
[380362551,1755704311640,-1441.89,0.00030684,120]
[380362552,1755704311692,-1129.75,0.00030684,120]
[380362553,1755704311741,-732.85,0.00030684,120]
[380362554,1755704311805,-727.42,0.00030684,120]
[380362555,1755704311856,-400.0,0.00030684,120]
[380362556,1755704311909,-809.13,0.00030684,120]
[380362557,1755704311960,-1494.53,0.00030684,120]
[380362558,1755704312012,-400.0,0.00030684,120]
[380362559,1755704312064,-1133.12,0.00030684,120]
[380362560,1755704312119,-514.29,0.00030684,120]
[380362561,1755704312175,-994.59,0.00030684,120]
[380362562,1755704312235,-1156.27,0.00030684,120]
[380362563,1755704312297,-405.57193743,0.00030684,120]
[380362564,1755704312355,-1470.84,0.00030684,120]
[380362565,1755704312410,-1419.86,0.00030684,120]
[380362566,1755704312467,-400.0,0.00030684,120]
[380362567,1755704312524,-1310.35,0.00030684,120]
[380362568,1755704312578,-1114.65,0.00030684,120]
[380362569,1755704312629,-1330.33,0.00030684,120]
[380362570,1755704312683,-400.0,0.00030684,120]
[380362571,1755704312738,-400.0,0.00030684,120]
[380362572,1755704312794,-430.61,0.00030684,120]
[380362573,1755704312855,-400.0,0.00030684,120]
[380362574,1755704312908,-1080.04,0.00030684,120]
[380362575,1755704312964,-909.62,0.00030684,120]
[380362576,1755704313016,-756.7,0.00030684,120]
[380362577,1755704313078,-1177.72,0.00030684,120]
[380362578,1755704313135,-400.0,0.00030684,120]
[380362579,1755704313198,-866.56,0.00030684,120]
[380362580,1755704313259,-1134.09,0.00030684,120]
[380362581,1755704313324,-1116.91,0.00030684,120]
[380362582,1755704313389,-1698.19,0.00030684,120]
[380362583,1755704313450,-400.0,0.00030684,120]
[380362584,1755704313514,-698.15,0.00030684,120]
[380362585,1755704313576,-1476.81,0.00030684,120]
[380362586,1755704313633,-1099.37,0.00030684,120]
[380362587,1755704313696,-1075.8,0.00030684,120]
[380362588,1755704313755,-1704.43,0.00030684,120]
[380362589,1755704313819,-3119.31,0.00030684,120]
[380362590,1755704313883,-1429.41,0.00030684,120]
[380362591,1755704313947,-1092.97,0.00030684,120]
[380362592,1755704314009,-2175.99,0.00030684,120]
[380362593,1755704314072,-982.51,0.00030684,120]
[380362594,1755704314135,-1677.35,0.00030684,60]
[380362595,1755704314199,-354.37310814,0.00030684,120]
[380362596,1755704314264,-1533.9,0.00030684,120]
[380362597,1755704314328,-696.27,0.00030684,120]
[380362598,1755704314393,-400.0,0.00030684,120]
[380362599,1755704314452,-400.0,0.00030684,120]
[380362600,1755704314514,-1517.11,0.00030684,120]
[380362601,1755704314569,-1000.1,0.00030684,120]
[380362602,1755704314626,-409.19,0.00030684,120]
[380362603,1755704314680,-400.0,0.00030684,120]
[380362604,1755704314749,-497.1997272,0.00030684,120]
[380362605,1755704314806,-1488.6,0.00030684,120]
[380362606,1755704314859,-400.0,0.00030684,120]
[380362607,1755704314917,-1118.43,0.00030684,120]
[380362608,1755704314978,-1579.0,0.00030684,120]
[380362609,1755704315038,-400.0,0.00030684,120]
[380362610,1755704315098,-910.36,0.00030684,120]
[380362611,1755704315159,-1765.77,0.00030684,120]
[380362612,1755704315215,-400.0,0.00030684,120]
[380362613,1755704315273,-466.92,0.00030684,120]
[380362614,1755704315331,-1933.39,0.00030684,120]
[380362615,1755704315389,-400.0,0.00030684,120]
[380362616,1755704315444,-400.0,0.00030684,120]
[380362617,1755704315504,-1462.34,0.00030684,120]
[380362618,1755704315557,-1431.51,0.00030684,120]
[380362619,1755704315612,-1905.51,0.00030684,120]
[380362620,1755704315664,-734.83,0.00030684,120]
[380362621,1755704315716,-1278.87,0.00030684,120]
[380362622,1755704315767,-1239.09,0.00030684,120]
[380362623,1755704315820,-1462.75,0.00030684,120]
[380362624,1755704315872,-1629.62,0.00030684,120]
[380362625,1755704315926,-401.9,0.00030684,120]
[380362626,1755704315977,-1484.13,0.00030684,120]
[380362627,1755704316031,-851.22,0.00030684,120]
[380362628,1755704316093,-622.18,0.00030684,120]
[380362629,1755704316155,-527.75,0.00030684,120]
[380362630,1755704316213,-982.39,0.00030684,120]
[380362631,1755704316268,-400.0,0.00030684,120]
[380362632,1755704316329,-892.04,0.00030684,120]
[380362633,1755704316386,-808.7,0.00030684,120]
[380362634,1755704316441,-400.0,0.00030684,120]
[380362635,1755704316498,-1255.42,0.00030684,120]
[380362636,1755704316549,-4207.86,0.00030684,120]
[380362637,1755704316602,-1143.78,0.00030684,120]
[380362638,1755704316652,-1556.46,0.00030684,120]
[380362639,1755704316705,-930.43,0.00030684,120]
[380362640,1755704316755,-974.16,0.00030684,120]
[380362641,1755704316808,-400.0,0.00030684,120]
[380362642,1755704316857,-969.64,0.00030684,120]
[380362643,1755704316911,-1171.86,0.00030684,120]
[380362644,1755704316965,-1666.05,0.00030684,120]
[380362645,1755704317020,-1150.86,0.00030684,120]
[380362646,1755704317081,-1585.74,0.00030684,120]
[380362647,1755704317148,-1726.77,0.00030684,120]
[380362648,1755704317210,-482.81,0.00030684,120]
[380362649,1755704317273,-400.0,0.00030684,120]
[380362650,1755704317336,-1492.51,0.00030684,120]
[380362651,1755704317395,-1315.68,0.00030684,120]
[380362652,1755704317451,-3095.19,0.00030684,118]
[380362653,1755704317505,-694.92,0.00030684,120]
[380362654,1755704317558,-651.71,0.00030684,120]
[380362655,1755704317614,-400.0,0.00030684,120]
[380362656,1755704317669,-1519.67,0.00030684,120]
[380362657,1755704318155,-400.0,0.00030684,120]
[380362658,1755704318210,-2787.79,0.00030684,120]
[380362659,1755704318264,-400.0,0.00030684,120]
[380362660,1755704318321,-946.3,0.00030684,120]
[380362661,1755704318378,-2545.72,0.00030684,120]
[380362662,1755704318434,-919.15,0.00030684,120]
[380362663,1755704318486,-400.0,0.00030684,120]
[380362664,1755704318543,-784.01,0.00030684,120]
[380362665,1755704318595,-400.0,0.00030684,120]
[380362666,1755704318649,-400.0,0.00030684,120]
[380362667,1755704318702,-1155.56,0.00030684,120]
[380362668,1755704318755,-400.0,0.00030684,120]
[380362669,1755704318806,-400.0,0.00030684,120]
[380362670,1755704318856,-1287.18,0.00030684,120]
[380362671,1755704318905,-407.22,0.00030684,120]
[380362672,1755704318956,-2620.62,0.00030684,120]
[380362673,1755704319006,-1714.44,0.00030684,120]
[380362674,1755704319057,-666.35,0.00030684,120]
[380362675,1755704319114,-457.28,0.00030684,120]
[380362676,1755704319172,-3107.9,0.00030684,120]
[380362677,1755704319230,-1036.24,0.00030684,120]
[380362678,1755704319292,-400.0,0.00030684,120]
[380362679,1755704319355,-400.0,0.00030684,120]
[380362680,1755704319418,-1108.84,0.00030684,120]
[380362681,1755704319482,-400.0,0.00030684,120]
[380362682,1755704319545,-1645.5,0.00030684,120]
[380362683,1755704319606,-1622.45,0.00030684,120]
[380362684,1755704319667,-1297.7,0.00030684,120]
[380362685,1755704319730,-1491.86,0.00030684,120]
[380362686,1755704319789,-1560.41,0.00030684,120]
[380362687,1755704319846,-400.0,0.00030684,120]
[380362688,1755704319903,-523.51,0.00030684,120]
[380362689,1755704319962,-624.41,0.00030684,120]
[380362690,1755704320016,-860.87,0.00030684,120]
[380362691,1755704320072,-1139.74,0.00030684,120]
[380362692,1755704320135,-400.0,0.00030684,120]
[380362693,1755704320195,-2036.4,0.00030684,120]
[380362694,1755704320257,-1235.24,0.00030684,120]
[380362695,1755704320314,-1168.66,0.00030684,120]
[380362696,1755704320367,-1153.09,0.00030684,120]
[380362697,1755704320421,-502.04,0.00030684,120]
[380362698,1755704320478,-1574.86,0.00030684,120]
[380362699,1755704320536,-1030.1,0.00030684,120]
[380362700,1755704320592,-678.9,0.00030684,120]
[380362701,1755704320653,-1105.8,0.00030684,120]
[380362702,1755704320712,-1014.35,0.00030684,120]
[380362703,1755704320776,-1808.38,0.00030684,120]
[380362704,1755704320850,-981.04,0.00030684,120]
[380362705,1755704320901,-1107.87,0.00030684,120]
[380362706,1755704320954,-940.82,0.00030684,120]
[380362707,1755704321003,-1262.34,0.00030684,120]
[380362708,1755704321058,-400.0,0.00030684,120]
[380362709,1755704321110,-400.0,0.00030684,120]
[380362710,1755704321163,-575.92,0.00030684,120]
[380362711,1755704321216,-4460.21,0.00030684,120]
[380362712,1755704321266,-1574.38,0.00030684,120]
[380362713,1755704321318,-174.97651752,0.00030684,120]
[380362714,1755704321369,-982.5,0.00030684,120]
[380362715,1755704321422,-3483.7,0.00030684,120]
[380362716,1755704321470,-1036.67,0.00030684,120]
[380362717,1755704321528,-562.95,0.00030684,120]
[380362718,1755704321586,-400.0,0.00030684,120]
[380362719,1755704321645,-4249.94,0.00030684,120]
[380362720,1755704321700,-970.03,0.00030684,120]
[380362721,1755704321755,-1093.59,0.00030684,120]
[380362722,1755704321809,-1546.42,0.00030684,120]
[380362723,1755704321863,-1629.64,0.00030684,120]
[380362724,1755704321912,-989.51,0.00030684,120]
[380362725,1755704321971,-1482.65,0.00030684,120]
[380362726,1755704322024,-1533.81,0.00030684,120]
[380362727,1755704322089,-400.0,0.00030684,120]
[380362728,1755704322149,-2012.8,0.00030684,120]
[380362729,1755704322213,-979.71,0.00030684,120]
[380362730,1755704322288,-1282.97,0.00030684,120]
[380362731,1755704322350,-1051.53,0.00030684,120]
[380362732,1755704322407,-1163.9,0.00030684,120]
[380362733,1755704322464,-1009.21,0.00030684,120]
[380362734,1755704322517,-1255.85,0.00030684,120]
[380362735,1755704322570,-498.48,0.00030684,120]
[380362736,1755704322617,-788.47,0.00030684,120]
[380362737,1755704322667,-1106.04,0.00030684,120]
[380362738,1755704322715,-400.0,0.00030684,120]
[380362739,1755704322765,-1222.51,0.00030684,120]
[380362740,1755704322816,-1302.36,0.00030684,120]
[380362741,1755704322869,-582.37,0.00030684,120]
[380362742,1755704322918,-1567.19,0.00030684,120]
[380362743,1755704322982,-1204.77,0.00030684,120]
[380362744,1755704323038,-475.96,0.00030684,120]
[380362745,1755704323096,-1602.17,0.00030684,120]
[380362746,1755704323148,-611.81,0.00030684,120]
[380362747,1755704323208,-2299.2,0.00030684,120]
[380362748,1755704323267,-1767.0,0.00030684,120]
[380362749,1755704323328,-1731.78,0.00030684,120]
[380362750,1755704323384,-1416.62,0.00030684,120]
[380362751,1755704323440,-4682.8,0.00030684,120]
[380362752,1755704323491,-400.0,0.00030684,120]
[380362753,1755704323544,-1317.41,0.00030684,120]
[380362754,1755704323597,-400.0,0.00030684,120]
[380362755,1755704323647,-1072.63,0.00030684,120]
[380362756,1755704323698,-1559.05,0.00030684,120]
[380362757,1755704323745,-400.0,0.00030684,120]
[380362758,1755704323802,-517.09,0.00030684,120]
[380362759,1755704323850,-925.44,0.00030684,120]
[380362760,1755704323903,-400.0,0.00030684,120]
[380362761,1755704323956,-422.38,0.00030684,120]
[380362762,1755704324014,-751.9,0.00030684,120]
[380362763,1755704324079,-519.13,0.00030684,120]
[380362764,1755704324135,-400.0,0.00030684,120]
[380362765,1755704324194,-817.78,0.00030684,120]
[380362766,1755704324246,-400.0,0.00030684,120]
[380362767,1755704324301,-2085.12,0.00030684,120]
[380362768,1755704324352,-400.0,0.00030684,120]
[380362769,1755704324403,-400.0,0.00030684,120]
[380362770,1755704324450,-2111.46,0.00030684,120]
[380362771,1755704324496,-882.78,0.00030684,120]
[380362772,1755704325003,-628.3,0.00030684,120]
[380362773,1755704325063,-1129.24,0.00030684,120]
[380362774,1755704325118,-960.25,0.00030684,120]
[380362775,1755704325172,-3232.33,0.00030684,120]
[380362776,1755704325233,-400.0,0.00030684,120]
[380362777,1755704325293,-614.14,0.00030684,120]
[380362778,1755704325355,-451.16,0.00030684,120]
[380362779,1755704325415,-549.01,0.00030684,120]
[380362780,1755704325474,-400.0,0.00030684,120]
[380362781,1755704325529,-1416.3,0.00030684,120]
[380362782,1755704325582,-400.0,0.00030684,120]
[380362783,1755704325631,-497.52,0.00030684,120]
[380362784,1755704325684,-555.47,0.00030684,120]
[380362785,1755704325735,-955.54,0.00030684,120]
[380362786,1755704325788,-1494.98,0.00030684,120]
[380362787,1755704325844,-400.0,0.00030684,120]
[380362788,1755704325895,-400.0,0.00030684,120]
[380362789,1755704325948,-400.0,0.00030684,120]
[380362790,1755704326001,-814.06,0.00030684,120]
[380362791,1755704326062,-2152.92,0.00030684,120]
[380362792,1755704326115,-814.29,0.00030684,120]
[380362793,1755704326179,-503.92,0.00030684,120]
[380362794,1755704326243,-1932.34,0.00030684,120]
[380362795,1755704326306,-400.0,0.00030684,120]
[380362796,1755704326364,-1071.98,0.00030684,120]
[380362797,1755704326414,-400.0,0.00030684,120]
[380362798,1755704326464,-1323.24,0.00030684,120]
[380362799,1755704326514,-893.37,0.00030684,120]
[380362800,1755704326564,-672.41,0.00030684,120]
[380362801,1755704326610,-1382.27,0.00030684,120]
[380362802,1755704326658,-400.0,0.00030684,120]
[380362803,1755704326705,-400.0,0.00030684,120]
[380362804,1755704326754,-694.49,0.00030684,120]
[380362805,1755704326802,-400.0,0.00030684,120]
[380362806,1755704326849,-1271.7,0.00030684,120]
[380362807,1755704326898,-1330.74,0.00030684,120]
[380362808,1755704326947,-400.0,0.00030684,120]
[380362809,1755704326995,-689.59,0.00030684,120]
[380362810,1755704327049,-1172.55,0.00030684,120]
[380362811,1755704327100,-400.0,0.00030684,120]
[380362812,1755704327156,-2439.05,0.00030684,120]
[380362813,1755704327205,-1237.2,0.00030684,120]
[380362814,1755704327263,-1650.39,0.00030684,120]
[380362815,1755704327320,-1396.27,0.00030684,120]
[380362816,1755704327373,-1114.08,0.00030684,120]
[380362817,1755704327426,-400.0,0.00030684,120]
[380362818,1755704327481,-1755.63,0.00030684,120]
[380362819,1755704327536,-400.0,0.00030684,120]
[380362820,1755704327594,-877.19,0.00030684,120]
[380362821,1755704327644,-1635.14,0.00030684,120]
[380362822,1755704327701,-400.0,0.00030684,120]
[380362823,1755704327752,-400.0,0.00030684,120]
[380362824,1755704327812,-1408.79,0.00030684,120]
[380362825,1755704327868,-457.1,0.00030684,120]
[380362826,1755704327924,-3557.22,0.00030684,120]
[380362827,1755704327977,-395.2297006,0.00030684,120]
[380362828,1755704328028,-1847.43,0.00030684,120]
[380362829,1755704328086,-630.81,0.00030684,120]
[380362830,1755704328143,-404.25,0.00030684,120]
[380362831,1755704328201,-381.0015105,0.00030684,120]
[380362832,1755704328262,-1567.31,0.00030684,120]
[380362833,1755704328323,-400.0,0.00030684,120]
[380362834,1755704328384,-954.98,0.00030684,120]
[380362835,1755704328444,-1540.34,0.00030684,120]
[380362836,1755704328501,-592.5,0.00030684,120]
[380362837,1755704328561,-400.0,0.00030684,120]
[380362838,1755704328616,-897.43,0.00030684,120]
[380362839,1755704328671,-1864.26,0.00030684,120]
[380362840,1755704328723,-767.51,0.00030684,120]
[380362841,1755704328775,-497.66,0.00030684,120]
[380362842,1755704328831,-562.9,0.00030684,60]
[380362843,1755704328885,-1870.68,0.00030684,120]
[380362844,1755704328943,-517.44,0.00030684,120]
[380362845,1755704328996,-1314.84,0.00030684,120]
[380362846,1755704329054,-1579.83,0.00030684,120]
[380362847,1755704329109,-1292.5,0.00030684,120]
[380362848,1755704329169,-400.0,0.00030684,120]
[380362849,1755704329226,-400.0,0.00030684,120]
[380362850,1755704329286,-497.22,0.00030684,120]
[380362851,1755704329345,-796.95,0.00030684,120]
[380362852,1755704329406,-1478.7,0.00030684,120]
[380362853,1755704329466,-1203.29,0.00030684,120]
[380362854,1755704329527,-1612.97,0.00030684,120]
[380362855,1755704329590,-1000.93,0.00030684,120]
[380362856,1755704329648,-400.0,0.00030684,120]
[380362857,1755704329705,-741.27,0.00030684,120]
[380362858,1755704329768,-1471.46,0.00030684,120]
[380362859,1755704329830,-400.0,0.00030684,120]
[380362860,1755704329895,-513.78,0.00030684,120]
[380362861,1755704329954,-400.0,0.00030684,120]
[380362862,1755704330016,-1015.74,0.00030684,120]
[380362863,1755704330073,-400.0,0.00030684,120]
[380362864,1755704330134,-1708.33,0.00030684,120]
[380362865,1755704330195,-737.98,0.00030684,120]
[380362866,1755704330259,-1054.95,0.00030684,120]
[380362867,1755704330320,-400.0,0.00030684,120]
[380362868,1755704330386,-3349.39,0.00030684,120]
[380362869,1755704330444,-2591.8,0.00030684,120]
[380362870,1755704330501,-1253.87,0.00030684,120]
[380362871,1755704330560,-1272.44,0.00030684,120]
[380362872,1755704330621,-1199.18,0.00030684,120]
[380362873,1755704330680,-400.0,0.00030684,120]
[380362874,1755704330741,-476.88,0.00030684,120]
[380362875,1755704330800,-1905.84,0.00030684,120]
[380362876,1755704330857,-400.0,0.00030684,120]
[380362877,1755704330910,-1265.57,0.00030684,120]
[380362878,1755704330968,-1020.67,0.00030684,120]
[380362879,1755704331026,-542.94,0.00030684,120]
[380362880,1755704331090,-1177.32,0.00030684,120]
[380362881,1755704331151,-400.0,0.00030684,120]
[380362882,1755704331208,-1695.54,0.00030684,120]
[380362883,1755704331266,-1546.01,0.00030684,120]
[380362884,1755704331323,-400.0,0.00030684,120]
[380362885,1755704331384,-942.87,0.00030684,120]
[380362886,1755704331446,-617.27,0.00030684,120]
[380362887,1755704331511,-1377.85,0.00030684,120]
[380362888,1755704331564,-400.0,0.00030684,120]
[380362889,1755704331615,-1478.94,0.00030684,120]
[380362890,1755704331664,-400.0,0.00030684,120]
[380362891,1755704331712,-400.0,0.00030684,120]
[380362892,1755704331764,-2891.27,0.00030684,120]
[380362893,1755704331815,-1696.74,0.00030684,120]
[380362894,1755704331866,-600.0,0.00030822,80]
[380362895,1755704331917,-400.0,0.00030958,120]
[380362896,1755704331970,-400.0,0.00030958,120]
[380362897,1755704332018,-400.0,0.00030958,120]
[380362898,1755704332071,-400.0,0.00030958,120]
[380362899,1755704332120,-400.0,0.00030958,120]
[380362900,1755704332180,-400.0,0.00030958,120]
[380362901,1755704332239,-400.0,0.00030958,120]
[380362902,1755704332294,-400.0,0.00030958,120]
[380362903,1755704332342,-354.7669896,0.00030958,120]